fUSD/lending_fUSD_20241110
["ID","MTS","AMOUNT","RATE_DAILY","PERIOD"]
[341858678,1731258646381,-6253.46,0.00013679,2]
[341858679,1731258646391,-500.0,0.00013679,2]
[341858680,1731258646401,-223.44867087,0.00013679,2]
[341858681,1731258646410,-34562.9246084,0.0001368,2]
[341858682,1731258646433,-331.27706191,0.0001368,2]
[341858683,1731258646445,-403.12403719,0.0001368,2]
[341858684,1731258731050,-444.77588666,0.000131,2]
[341858685,1731258731078,-400.0,0.000131,4]
[341858686,1731258731109,-900.0,0.000132,4]
[341858687,1731258731141,-1400.0,0.000133,4]
[341858688,1731258731166,-1900.0,0.000134,4]
[341858689,1731258731193,-2400.0,0.000135,4]
[341858690,1731258731220,-4378.34284677,0.00013565,2]
[341858691,1731258731246,-4378.34284677,0.00013568,2]
[341858692,1731258731274,-4378.34284677,0.00013572,2]
[341858693,1731258731302,-4378.34284677,0.00013576,2]
[341858694,1731258731330,-200.10636151,0.00013579,2]
[341858695,1731258731356,-300.0,0.00013579,2]
[341858696,1731258731383,-5000.0,0.0001358,2]
[341858697,1731258731411,-200.10636151,0.00013582,2]
[341858698,1731258731436,-200.10636151,0.00013584,2]
[341858699,1731258731461,-200.10636151,0.00013587,2]
[341858700,1731258731492,-4378.34284677,0.00013599,2]
[341858701,1731258731521,-4378.34284677,0.000136,2]
[341858702,1731258731549,-400.0,0.000136,4]
[341858703,1731258731577,-2587.7029166,0.0001367,2]
[341858704,1731258731604,-500.0,0.00013673,2]
[341858705,1731258731630,-500.0,0.00013673,2]
[341858706,1731258731657,-150.0,0.00013678,2]
[341858707,1731258731682,-652901.185206,0.00013679,2]
[341858708,1731258731707,-257.60515579,0.00013679,2]
[341858709,1731258731733,-696.17098404,0.00013679,2]
[341858710,1731258731758,-128208.07732425,0.0001368,2]
[341858711,1731258802917,150.0,0.00027,120]
[341858712,1731258884261,4627.96528,0.00027,60]
[341858729,1731259189065,1000.0,0.00027,120]
[341858730,1731259190618,491.0,0.00027,60]
[341858738,1731259324326,1771.04,0.00010672,2]
[341858739,1731259426579,1000.0,0.00022,26]
[341858740,1731259459609,1000.0,0.00027,90]
[341858745,1731259636142,-250.0,0.0001249,2]
[341858746,1731259636165,-250.0,0.00012525,2]
[341858747,1731259636186,-1000.0,0.00012538,2]
[341858748,1731259636206,-499.26,0.00012549,2]
[341858749,1731259636227,-200.0,0.00012558,2]
[341858750,1731259636248,-358.63,0.0001259,2]
[341858751,1731259636268,-167.71,0.0001263,2]
[341858752,1731259636289,-1780.74,0.00012631,2]
[341858753,1731259636311,-589.26,0.00012636,2]
[341858754,1731259636333,-300.0,0.00012648,2]
[341858755,1731259636355,-366.69074857,0.00012649,2]
[341858756,1731259696647,-5000000.0,0.00039162,30]
[341858778,1731259832376,-167.71,0.00012519,2]
[341858779,1731259832385,-196.42,0.00012601,2]
[341858780,1731259832395,-23533.30925143,0.00012649,2]
[341858781,1731259832406,-2340.92,0.00012665,2]
[341858782,1731259832419,-818.0,0.00012936,2]
[341858783,1731259832430,-1771.04,0.00012936,2]
[341858784,1731259832439,-200.0,0.00013,4]
[341858785,1731259832449,-500.0,0.000131,4]
[341858786,1731259832459,-6539.0,0.0001314,2]
[341858787,1731259832468,-432.99,0.000132,2]
[341858788,1731259832479,-150.0,0.000132,2]
[341858789,1731259832488,-700.0,0.000132,4]
[341858790,1731259832499,-299.99,0.000132,2]
[341858791,1731259832508,-432.99,0.000133,2]
[341858792,1731259832519,-362.16,0.000133,2]
[341858793,1731259832528,-1000.0,0.000133,4]
[341858794,1731259832537,-426.22825879,0.00013343,2]
[341858795,1731259832547,-150.99,0.0001335,2]
[341858796,1731259832557,-1300.0,0.000134,4]
[341858797,1731259832566,-676.87533787,0.00013471,2]
[341858798,1731259832576,-504.8939,0.00013479,2]
[341858799,1731259832586,-1515.1042,0.00013481,2]
[341858800,1731259832595,-150.0,0.00013499,2]
[341858801,1731259832604,-6388.0,0.000135,2]
[341858802,1731259832614,-432.99,0.000135,2]
[341858803,1731259832623,-200.0,0.000135,4]
[341858804,1731259832635,-8046.4398364,0.00013559,2]
[341858805,1731259832644,-5149.07734807,0.00013561,2]
[341858806,1731259832654,-8046.4398364,0.00013565,2]
[341858807,1731259832664,-8046.4398364,0.00013567,2]
[341858808,1731259832673,-7023.73683941,0.00013571,2]
[341858809,1731259832683,-991.7603,0.00013571,2]
[341858810,1731259832692,-13402.97,0.00013571,2]
[341858811,1731259832701,-7023.73683938,0.00013574,2]
[341858812,1731259832711,-1723.23297288,0.00013576,2]
[341858813,1731259832720,-8046.4398364,0.00013577,2]
[341858814,1731259832729,-7023.73683938,0.00013577,2]
[341858815,1731259832738,-171.348901,0.00013579,2]
[341858816,1731259832747,-5000.0,0.00013579,2]
[341858817,1731259832758,-7023.73683938,0.0001358,2]
[341858818,1731259832768,-15371.613,0.00013581,2]
[341858819,1731259832779,-7023.73683938,0.00013583,2]
[341858820,1731259832789,-8046.4398364,0.00013583,2]
[341858821,1731259832798,-7023.73683938,0.00013586,2]
[341858822,1731259832808,-1723.23297288,0.00013586,2]
[341858823,1731259832821,-7023.73683938,0.00013589,2]
[341858824,1731259832830,-200.10636151,0.0001359,2]
[341858825,1731259832841,-1723.23297288,0.00013591,2]
[341858826,1731259832851,-7023.73683938,0.00013592,2]
[341858827,1731259832860,-200.10636151,0.00013593,2]
[341858828,1731259832870,-1723.23297288,0.00013593,2]
[341858829,1731259832879,-5037.685,0.00013593,2]
[341858830,1731259832889,-174.106,0.00013593,2]
[341858831,1731259832898,-1723.23297288,0.00013594,2]
[341858832,1731259832907,-1723.23297288,0.00013595,2]
[341858833,1731259832916,-7023.73683938,0.00013595,2]
[341858834,1731259832926,-200.10636151,0.00013595,2]
[341858835,1731259832935,-200.10636151,0.00013598,2]
[341858836,1731259832944,-7023.73683938,0.00013598,2]
[341858838,1731259832953,-8046.4398364,0.00013599,2]
[341858840,1731259832962,-200.0,0.000136,4]
[341858842,1731259832971,-500.0,0.00013668,2]
[341858844,1731259832980,-157.18290822,0.00013668,2]
[341858845,1731259832989,-3070.9112264,0.00013669,2]
[341858847,1731259832998,-68871.69382517,0.00013671,2]
[341858850,1731259833011,-124331.30617483,0.00013671,2]
[341858852,1731259833020,-217.0,0.00013671,2]
[341858854,1731259833030,-498.64183754,0.00013673,2]
[341858856,1731259833039,-500.0,0.00013673,2]
[341858857,1731259833048,-500.0,0.00013673,2]
[341858859,1731259833058,-500.0,0.00013678,2]
[341858861,1731259833067,-500.0,0.00013678,2]
[341858863,1731259833077,-464.11398936,0.00013679,2]
[341858865,1731259833090,-218610.06766684,0.0001368,2]
[341858867,1731259833101,-13981.59895966,0.0001368,2]
[341858868,1731259833113,-11632.97842712,0.0001368,2]
[341858869,1731259833134,-13000.85586539,0.0001368,2]
[341858870,1731259833145,-11962.5,0.0001368,2]
[341858871,1731259833156,-3583.5566704,0.0001368,2]
[341858873,1731259838248,-283.381652,0.00013579,2]
[341858874,1731259838380,-216.618348,0.00013579,2]
[341858875,1731259838390,-505.46749554,0.00013579,2]
[341858876,1731259838399,-500.68734814,0.00013579,2]
[341858877,1731259838408,-388.44857155,0.00013579,2]
[341858878,1731259838417,-175.28502876,0.0001367,2]
[341858879,1731259838426,-500.0,0.00013678,2]
[341858880,1731259838435,-500.0,0.00013678,2]
[341858881,1731259838444,-500.0,0.00013678,2]
[341858882,1731259838453,-500.0,0.00013678,2]
[341858883,1731259838462,-500.0,0.00013678,2]
[341858884,1731259838471,-500.0,0.00013678,2]
[341858885,1731259838480,-657103.15918765,0.0001368,2]
[341858886,1731259838488,-14834.60500471,0.0001368,2]
[341858887,1731259838504,-79748.47803863,0.0001368,2]
[341859075,1731259840529,-1601.59280647,0.0001368,2]
[341859077,1731259840541,-691.91000002,0.0001368,2]
[341859081,1731259840576,-14804.42710202,0.0001368,2]
[341859093,1731259840680,-264.64355,0.0001368,2]
[341859358,1731259843359,-309.40932624,0.00013679,2]
[341859360,1731259843369,-15250.30902175,0.0001368,2]
[341859369,1731259843440,-3486.05,0.0001368,2]
[341859379,1731259843524,-3174.81838814,0.0001368,2]
[341859388,1731259843610,-3935.08186163,0.0001368,2]
[341859391,1731259843622,-4252.49359351,0.0001368,2]
[341859393,1731259843633,-864.84402271,0.0001368,2]
[341859400,1731259843688,-638.94570887,0.0001368,2]
[341859643,1731259846133,-30615.4645881,0.0001368,2]
[341859646,1731259846145,-43460.36519945,0.0001368,2]
[341859648,1731259846155,-1000.0,0.0001368,2]
[341859650,1731259846164,-1000.0,0.0001368,2]
[341859652,1731259846174,-1000.0,0.0001368,2]
[341859654,1731259846183,-1000.0,0.0001368,2]
[341859656,1731259846192,-1000.0,0.0001368,2]
[341859658,1731259846201,-1000.0,0.0001368,2]
[341859660,1731259846211,-1000.0,0.0001368,2]
[341859662,1731259846220,-1000.0,0.0001368,2]
[341859664,1731259846230,-1000.0,0.0001368,2]
[341859666,1731259846240,-1000.0,0.0001368,2]
[341859668,1731259846250,-1000.0,0.0001368,2]
[341859670,1731259846259,-1000.0,0.0001368,2]
[341859672,1731259846270,-1000.0,0.0001368,2]
[341859674,1731259846280,-1000.0,0.0001368,2]
[341859676,1731259846289,-1000.0,0.0001368,2]
[341859678,1731259846299,-1000.0,0.0001368,2]
[341859680,1731259846308,-1000.0,0.0001368,2]
[341859682,1731259846318,-1000.0,0.0001368,2]
[341859684,1731259846328,-1000.0,0.0001368,2]
[341859686,1731259846337,-1000.0,0.0001368,2]
[341859688,1731259846348,-1000.0,0.0001368,2]
[341859690,1731259846358,-1000.0,0.0001368,2]
[341859692,1731259846368,-1000.0,0.0001368,2]
[341859694,1731259846378,-1000.0,0.0001368,2]
[341859696,1731259846388,-1000.0,0.0001368,2]
[341859698,1731259846397,-1000.0,0.0001368,2]
[341859700,1731259846407,-1000.0,0.0001368,2]
[341859702,1731259846416,-1000.0,0.0001368,2]
[341859704,1731259846426,-1000.0,0.0001368,2]
[341859706,1731259846435,-550.32034107,0.0001368,2]
[341859726,1731259846736,-449.67965893,0.0001368,2]
[341859728,1731259846745,-1000.0,0.0001368,2]
[341859730,1731259846756,-1000.0,0.0001368,2]
[341859732,1731259846766,-1000.0,0.0001368,2]
[341859734,1731259846776,-594.03052128,0.0001368,2]
[341859736,1731259846796,-265.28999967,0.0001368,2]
[341859739,1731259846808,-140.67947905,0.0001368,2]
[341859741,1731259846821,-550.91021777,0.0001368,2]
[341859743,1731259846830,-100.20381063,0.0001368,2]
[341859745,1731259846844,-562.61211396,0.0001368,2]
[341859747,1731259846857,-528.36540947,0.0001368,2]
[341859749,1731259846869,-484.6008018,0.0001368,2]
[341859752,1731259846881,-4939.1085,0.0001368,2]
[341860275,1731259852050,-7975.4765493,0.0001368,2]
[341860277,1731259852059,-151.0,0.0001368,2]
[341860279,1731259852068,-151.0,0.0001368,2]
[341860281,1731259852077,-153.999884,0.0001368,2]
[341860283,1731259852086,-151.0,0.0001368,2]
[341860285,1731259852095,-151.0,0.0001368,2]
[341860287,1731259852105,-151.0,0.0001368,2]
[341860289,1731259852115,-169.142278,0.0001368,2]
[341860291,1731259852124,-169.142278,0.0001368,2]
[341860293,1731259852133,-176.503525,0.0001368,2]
[341860295,1731259852143,-176.503525,0.0001368,2]
[341860297,1731259852151,-151.0,0.0001368,2]
[341860299,1731259852161,-151.0,0.0001368,2]
[341860301,1731259852169,-151.0,0.0001368,2]
[341860303,1731259852178,-151.0,0.0001368,2]
[341860305,1731259852187,-151.0,0.0001368,2]
[341860307,1731259852196,-290.443082,0.0001368,2]
[341860309,1731259852205,-151.0,0.0001368,2]
[341860311,1731259852214,-151.0,0.0001368,2]
[341860313,1731259852223,-151.0,0.0001368,2]
[341860315,1731259852232,-151.0,0.0001368,2]
[341860317,1731259852241,-6610.398556,0.0001368,2]
[341860319,1731259852250,-152.501238,0.0001368,2]
[341860321,1731259852259,-323.772476,0.0001368,2]
[341860323,1731259852269,-323.772476,0.0001368,2]
[341860325,1731259852277,-151.0,0.0001368,2]
[341860327,1731259852286,-151.0,0.0001368,2]
[341860329,1731259852295,-151.0,0.0001368,2]
[341860331,1731259852304,-151.0,0.0001368,2]
[341860332,1731259852313,-151.0,0.0001368,2]
[341860334,1731259852322,-121975.00838511,0.0001368,2]
[341860336,1731259852331,-151.0,0.0001368,2]
[341860338,1731259852340,-735.293243,0.0001368,2]
[341860340,1731259852349,-735.293243,0.0001368,2]
[341860342,1731259852362,-151.0,0.0001368,2]
[341860344,1731259852371,-151.0,0.0001368,2]
[341860346,1731259852380,-294.971944,0.0001368,2]
[341860349,1731259852389,-151.0,0.0001368,2]
[341860350,1731259852400,-178.454552,0.0001368,2]
[341860352,1731259852410,-178.454552,0.0001368,2]
[341860354,1731259852419,-3991.48624,0.0001368,2]
[341860356,1731259852428,-3991.48624,0.0001368,2]
[341860358,1731259852437,-1922.0,0.00013684,2]
[341860361,1731259852447,-921.0,0.00013684,2]
[341860363,1731259852456,-2910.0,0.00013684,2]
[341860365,1731259852465,-1259.0,0.00013684,2]
[341860367,1731259852474,-814.0,0.00013684,2]
[341860368,1731259852483,-3465.0,0.00013684,2]
[341860371,1731259852492,-453.0,0.00013684,2]
[341860373,1731259852502,-5927.0,0.00013684,2]
[341860374,1731259852511,-1254.0,0.00013684,2]
[341860376,1731259852520,-240.417,0.00013684,2]
[341860378,1731259852529,-13614.0,0.00013684,2]
[341860380,1731259852538,-1159.0,0.00013684,2]
[341860382,1731259852547,-210.67,0.00013684,2]
[341860384,1731259852556,-150.0,0.00013685,2]
[341860386,1731259852565,-278.916,0.00013685,2]
[341860389,1731259852575,-155.0,0.00013685,2]
[341860391,1731259852584,-157.122,0.00013686,2]
[341860393,1731259852593,-290.621,0.00013686,2]
[341860395,1731259852605,-279.892,0.00013686,2]
[341860397,1731259852613,-250.0,0.00013686,2]
[341860398,1731259852623,-150.0,0.00013686,2]
[341860401,1731259852632,-150.0,0.00013686,2]
[341860403,1731259852641,-150.0,0.00013686,2]
[341860405,1731259852650,-175.28502876,0.00013688,2]
[341860407,1731259852659,-1850.79843083,0.0001369,2]
[341860409,1731259852667,-104181.84801107,0.0001369,2]
[341860410,1731259852676,-151.0,0.0001369,2]
[341860412,1731259852685,-178.454552,0.0001369,2]
[341860414,1731259852696,-178.454552,0.0001369,2]
[341860416,1731259852705,-3991.48624,0.0001369,2]
[341860418,1731259852714,-3991.48624,0.0001369,2]
[341860420,1731259852723,-916076.64835981,0.00013698,2]
[341860422,1731259852732,-18651.4627778,0.00013698,2]
[341860424,1731259852742,-200.0,0.00013698,2]
[341860426,1731259852751,-200.0,0.00013698,2]
[341860428,1731259852760,-200.0,0.00013698,2]
[341860430,1731259852769,-151.0,0.00013698,2]
[341860432,1731259852778,-151.0,0.00013698,2]
[341860434,1731259852787,-151.0,0.00013698,2]
[341860436,1731259852796,-151.0,0.00013698,2]
[341860438,1731259852805,-151.0,0.00013698,2]
[341860440,1731259852819,-151.0,0.00013698,2]
[341860442,1731259852829,-151.0,0.00013698,2]
[341860444,1731259852838,-151.0,0.00013698,2]
[341860446,1731259852847,-151.0,0.00013698,2]
[341860448,1731259852860,-151.0,0.00013698,2]
[341860449,1731259852869,-151.0,0.00013698,2]
[341860450,1731259852879,-152.902967,0.00013698,2]
[341860451,1731259852889,-419.745613,0.00013698,2]
[341860452,1731259852899,-419.745613,0.00013698,2]
[341860453,1731259852909,-419.745613,0.00013698,2]
[341860454,1731259852918,-419.745613,0.00013698,2]
[341860455,1731259852928,-419.745613,0.00013698,2]
[341860456,1731259852938,-419.745613,0.00013698,2]
[341860457,1731259852947,-419.745613,0.00013698,2]
[341860458,1731259852957,-419.745613,0.00013698,2]
[341860459,1731259852967,-419.745613,0.00013698,2]
[341860460,1731259852977,-419.745613,0.00013698,2]
[341860461,1731259852987,-419.745613,0.00013698,2]
[341860462,1731259852996,-419.745613,0.00013698,2]
[341860463,1731259853006,-419.745613,0.00013698,2]
[341860464,1731259853015,-419.745613,0.00013698,2]
[341860465,1731259853025,-419.745613,0.00013698,2]
[341860466,1731259853035,-419.745613,0.00013698,2]
[341860467,1731259853044,-419.745613,0.00013698,2]
[341860468,1731259853054,-419.745613,0.00013698,2]
[341860469,1731259853063,-419.745613,0.00013698,2]
[341860470,1731259853073,-419.745613,0.00013698,2]
[341860471,1731259853082,-151.0,0.00013698,2]
[341860472,1731259853092,-151.0,0.00013698,2]
[341860473,1731259853102,-151.0,0.00013698,2]
[341860474,1731259853111,-151.0,0.00013698,2]
[341860475,1731259853121,-151.0,0.00013698,2]
[341860476,1731259853130,-213.3288034,0.00013698,2]
[341860477,1731259853139,-151.0,0.00013698,2]
[341860479,1731259853148,-151.0,0.00013698,2]
[341860481,1731259853158,-152.890364,0.00013698,2]
[341860483,1731259853166,-164.419277,0.00013698,2]
[341860485,1731259853176,-151.0,0.00013698,2]
[341860487,1731259853185,-155.167618,0.00013698,2]
[341860489,1731259853195,-151.0,0.00013698,2]
[341860491,1731259853204,-151.0,0.00013698,2]
[341860493,1731259853213,-151.0,0.00013698,2]
[341860495,1731259853222,-151.0,0.00013698,2]
[341860497,1731259853231,-151.0,0.00013698,2]
[341860499,1731259853240,-156.700425,0.00013698,2]
[341860501,1731259853249,-151.652402,0.00013698,2]
[341860503,1731259853258,-151.0,0.00013698,2]
[341860505,1731259853268,-151.0,0.00013698,2]
[341860507,1731259853277,-151.0,0.00013698,2]
[341860509,1731259853287,-151.0,0.00013698,2]
[341860511,1731259853296,-151.0,0.00013698,2]
[341860513,1731259853305,-164.356048,0.00013698,2]
[341860515,1731259853315,-159.106259,0.00013698,2]
[341860517,1731259853324,-151.0,0.00013698,2]
[341860519,1731259853333,-151.0,0.00013698,2]
[341860520,1731259853342,-163.100164,0.00013698,2]
[341860521,1731259853352,-154.005892,0.00013698,2]
[341860522,1731259853361,-151.0,0.00013698,2]
[341860523,1731259853370,-151.0,0.00013698,2]
[341860524,1731259853379,-151.0,0.00013698,2]
[341860525,1731259853388,-151.0,0.00013698,2]
[341860526,1731259853397,-151.0,0.00013698,2]
[341860549,1731259853634,-151.0,0.00013698,2]
[341860551,1731259853643,-151.0,0.00013698,2]
[341860553,1731259853653,-153.495356,0.00013698,2]
[341860555,1731259853662,-151.0,0.00013698,2]
[341860557,1731259853671,-151.0,0.00013698,2]
[341860559,1731259853681,-151.0,0.00013698,2]
[341860561,1731259853690,-151.0,0.00013698,2]
[341860563,1731259853700,-287.44972,0.00013698,2]
[341860565,1731259853710,-151.0,0.00013698,2]
[341860567,1731259853719,-151.0,0.00013698,2]
[341860569,1731259853729,-151.0,0.00013698,2]
[341860571,1731259853738,-165.605083,0.00013698,2]
[341860573,1731259853747,-151.0,0.00013698,2]
[341860575,1731259853756,-151.0,0.00013698,2]
[341860577,1731259853766,-151.0,0.00013698,2]
[341860579,1731259853775,-151.0,0.00013698,2]
[341860581,1731259853784,-151.0,0.00013698,2]
[341860583,1731259853793,-151.0,0.00013698,2]
[341860585,1731259853802,-151.0,0.00013698,2]
[341860587,1731259853812,-151.0,0.00013698,2]
[341860589,1731259853826,-253.501216,0.00013698,2]
[341860591,1731259853836,-152.473962,0.00013698,2]
[341860593,1731259853845,-151.0,0.00013698,2]
[341860595,1731259853856,-151.0,0.00013698,2]
[341860598,1731259853866,-151.0,0.00013698,2]
[341860600,1731259853876,-200.344874,0.00013698,2]
[341860602,1731259853885,-367.95274369,0.00013698,2]
[341860604,1731259853897,-164.245789,0.00013698,2]
[341860606,1731259853907,-164.245789,0.00013698,2]
[341860608,1731259853916,-164.245789,0.00013698,2]
[341860610,1731259853925,-164.245789,0.00013698,2]
[341860612,1731259853934,-164.245789,0.00013698,2]
[341860613,1731259853943,-164.245789,0.00013698,2]
[341860616,1731259853953,-164.245789,0.00013698,2]
[341860618,1731259853962,-164.245789,0.00013698,2]
[341860620,1731259853971,-164.245789,0.00013698,2]
[341860622,1731259853981,-164.245789,0.00013698,2]
[341860624,1731259853991,-164.245789,0.00013698,2]
[341860626,1731259854000,-164.245789,0.00013698,2]
[341860628,1731259854009,-164.245789,0.00013698,2]
[341860630,1731259854019,-164.245789,0.00013698,2]
[341860631,1731259854028,-164.245789,0.00013698,2]
[341860633,1731259854037,-164.245789,0.00013698,2]
[341860636,1731259854046,-164.245789,0.00013698,2]
[341860638,1731259854056,-164.245789,0.00013698,2]
[341860640,1731259854065,-164.245789,0.00013698,2]
[341860642,1731259854075,-164.245785,0.00013698,2]
[341860643,1731259854084,-151.0,0.00013698,2]
[341860646,1731259854094,-151.0,0.00013698,2]
[341860648,1731259854104,-151.0,0.00013698,2]
[341860650,1731259854113,-151.0,0.00013698,2]
[341860652,1731259854122,-151.0,0.00013698,2]
[341860654,1731259854131,-151.0,0.00013698,2]
[341860656,1731259854140,-151.0,0.00013698,2]
[341860658,1731259854149,-151.0,0.00013698,2]
[341860660,1731259854158,-199.50930952,0.00013698,2]
[341860662,1731259854168,-151.0,0.00013698,2]
[341860664,1731259854177,-151.0,0.00013698,2]
[341860666,1731259854186,-151.0,0.00013698,2]
[341860668,1731259854194,-151.0,0.00013698,2]
[341860670,1731259854204,-151.0,0.00013698,2]
[341860671,1731259854213,-151.0,0.00013698,2]
[341860674,1731259854222,-151.0,0.00013698,2]
[341860676,1731259854231,-161.236804,0.00013698,2]
[341860678,1731259854240,-151.0,0.00013698,2]
[341860680,1731259854249,-151.0,0.00013698,2]
[341860682,1731259854258,-248.17207,0.00013698,2]
[341860684,1731259854267,-151.0,0.00013698,2]
[341860686,1731259854276,-151.0,0.00013698,2]
[341860687,1731259854286,-151.0,0.00013698,2]
[341860690,1731259854295,-154.870886,0.00013698,2]
[341860692,1731259854304,-221.508049,0.00013698,2]
[341860694,1731259854313,-151.0,0.00013698,2]
[341860695,1731259854323,-151.0,0.00013698,2]
[341860697,1731259854333,-151.0,0.00013698,2]
[341860700,1731259854342,-151.0,0.00013698,2]
[341860701,1731259854352,-151.0,0.00013698,2]
[341860703,1731259854362,-151.0,0.00013698,2]
[341860705,1731259854371,-151.0,0.00013698,2]
[341860706,1731259854380,-151.0,0.00013698,2]
[341860708,1731259854389,-151.0,0.00013698,2]
[341860710,1731259854399,-151.0,0.00013698,2]
[341860712,1731259854408,-151.0,0.00013698,2]
[341860713,1731259854417,-151.0,0.00013698,2]
[341860715,1731259854426,-151.0,0.00013698,2]
[341860717,1731259854436,-151.0,0.00013698,2]
[341860718,1731259854445,-151.0,0.00013698,2]
[341860720,1731259854454,-151.0,0.00013698,2]
[341860721,1731259854463,-151.0,0.00013698,2]
[341860723,1731259854473,-167.29164,0.00013698,2]
[341860725,1731259854482,-151.0,0.00013698,2]
[341860726,1731259854491,-151.0,0.00013698,2]
[341860728,1731259854501,-151.0,0.00013698,2]
[341860730,1731259854510,-151.0,0.00013698,2]
[341860732,1731259854519,-151.0,0.00013698,2]
[341860733,1731259854528,-151.0,0.00013698,2]
[341860735,1731259854537,-151.0,0.00013698,2]
[341860737,1731259854546,-151.0,0.00013698,2]
[341860738,1731259854555,-283.059793,0.00013698,2]
[341860740,1731259854565,-151.0,0.00013698,2]
[341860742,1731259854574,-154.552311,0.00013698,2]
[341860744,1731259854583,-524.88924552,0.00013698,2]
[341860745,1731259854592,-500.0,0.00013698,2]
[341860747,1731259854601,-529.41632225,0.00013698,2]
[341860749,1731259854611,-526.17830161,0.00013698,2]
[341860750,1731259854621,-528.344042,0.00013698,2]
[341860752,1731259854630,-528.344042,0.00013698,2]
[341860753,1731259854639,-528.344042,0.00013698,2]
[341860755,1731259854648,-528.344042,0.00013698,2]
[341860757,1731259854658,-528.344042,0.00013698,2]
[341860759,1731259854667,-184.4254257,0.00013698,2]
[341860761,1731259854676,-528.344042,0.00013698,2]
[341860762,1731259854685,-151.0,0.00013698,2]
[341860764,1731259854694,-528.344042,0.00013698,2]
[341860765,1731259854703,-151.0,0.00013698,2]
[341860767,1731259854712,-528.344042,0.00013698,2]
[341860769,1731259854722,-528.344042,0.00013698,2]
[341860771,1731259854732,-151.0,0.00013698,2]
[341860772,1731259854741,-528.344042,0.00013698,2]
[341860774,1731259854751,-151.0,0.00013698,2]
[341860776,1731259854760,-528.344042,0.00013698,2]
[341860778,1731259854770,-151.0,0.00013698,2]
[341860780,1731259854780,-528.344042,0.00013698,2]
[341860781,1731259854789,-151.0,0.00013698,2]
[341860783,1731259854798,-528.344042,0.00013698,2]
[341860785,1731259854808,-151.0,0.00013698,2]
[341860787,1731259854819,-151.0,0.00013698,2]
[341860788,1731259854829,-170.869176,0.00013698,2]
[341860790,1731259854838,-500.0,0.00013698,2]
[341860792,1731259854847,-528.344042,0.00013698,2]
[341860794,1731259854858,-528.344042,0.00013698,2]
[341860795,1731259854867,-516.99335626,0.00013698,2]
[341860797,1731259854877,-528.344042,0.00013698,2]
[341860799,1731259854886,-500.0,0.00013698,2]
[341860801,1731259854896,-528.344042,0.00013698,2]
[341860803,1731259854905,-500.0,0.00013698,2]
[341860804,1731259854914,-500.0,0.00013698,2]
[341860806,1731259854923,-528.344042,0.00013698,2]
[341860808,1731259854932,-500.0,0.00013698,2]
[341860810,1731259854941,-528.344042,0.00013698,2]
[341860811,1731259854950,-500.0,0.00013698,2]
[341860813,1731259854960,-528.34404,0.00013698,2]
[341860815,1731259854969,-500.0,0.00013698,2]
[341860817,1731259854979,-500.0,0.00013698,2]
[341860819,1731259854988,-500.0,0.00013698,2]
[341860821,1731259854997,-398.1962716,0.00013698,2]
[341860822,1731259855007,-510.95758105,0.00013698,2]
[341860824,1731259855017,-500.0,0.00013698,2]
[341860826,1731259855026,-500.0,0.00013698,2]
[341860828,1731259855035,-500.0,0.00013698,2]
[341860829,1731259855044,-159.72211904,0.00013698,2]
[341860831,1731259855053,-151.0,0.00013698,2]